[Event "Open NK Rapid 2025 bord 26-50"]
[Site "Helmond, Netherlands"]
[Date "2025.05.03"]
[Round "8.22"]
[White "Kriens, Hans"]
[Black "Timmers, Lars"]
[Result "1-0"]
[TimeControl "15 min +5 sec increment"]
[WhiteFideId "1093665"]
[BlackFideId "1098306"]
[WhiteElo "1878"]
[BlackElo "1625"]

1. d4 {[%clk 00:15:08]} {[%emt 00:00:01]} d5 {[%clk 00:15:09]} {[%emt
00:00:02]} 2. c4 {[%clk 00:15:10]} {[%emt 00:00:02]} e6 {[%clk 00:15:12]}
{[%emt 00:00:02]} 3. Nc3 {[%clk 00:15:13]} {[%emt 00:00:02]} Nf6 {[%clk
00:15:15]} {[%emt 00:00:02]} 4. Bf4 {[%clk 00:15:13]} {[%emt 00:00:05]} a6
{[%clk 00:15:06]} {[%emt 00:00:14]} 5. e3 {[%clk 00:15:16]} {[%emt 00:00:02]}
Be7 {[%clk 00:14:52]} {[%emt 00:00:19]} 6. h3 {[%clk 00:15:17]} {[%emt
00:00:03]} O-O {[%clk 00:14:53]} {[%emt 00:00:05]} 7. c5 {[%clk 00:15:17]}
{[%emt 00:00:06]} b6 {[%clk 00:14:52]} {[%emt 00:00:05]} 8. b4 {[%clk
00:15:19]} {[%emt 00:00:03]} Nc6 {[%clk 00:14:24]} {[%emt 00:00:33]} 9. a3
{[%clk 00:15:04]} {[%emt 00:00:20]} b5 {[%clk 00:14:03]} {[%emt 00:00:26]} 10.
Nf3 {[%clk 00:15:04]} {[%emt 00:00:05]} Nd7 {[%clk 00:13:43]} {[%emt 00:00:25]}
11. Nxb5 {[%clk 00:13:15]} {[%emt 00:01:55]} axb5 {[%clk 00:13:28]} {[%emt
00:00:20]} 12. Bxb5 {[%clk 00:13:18]} {[%emt 00:00:01]} Ncb8 {[%clk 00:12:11]}
{[%emt 00:01:22]} 13. O-O {[%clk 00:12:47]} {[%emt 00:00:36]} c6 {[%clk
00:12:10]} {[%emt 00:00:06]} 14. Be2 {[%clk 00:12:46]} {[%emt 00:00:06]} Nf6
{[%clk 00:11:15]} {[%emt 00:01:00]} 15. a4 {[%clk 00:12:34]} {[%emt 00:00:18]}
Ba6 {[%clk 00:10:56]} {[%emt 00:00:23]} 16. b5 {[%clk 00:12:19]} {[%emt
00:00:20]} Bc8 {[%clk 00:10:29]} {[%emt 00:00:32]} 17. Ne5 {[%clk 00:11:50]}
{[%emt 00:00:34]} Bb7 {[%clk 00:09:26]} {[%emt 00:01:08]} 18. Qb3 {[%clk
00:10:29]} {[%emt 00:01:27]} Qc8 {[%clk 00:09:07]} {[%emt 00:00:23]} 19. Rfb1
{[%clk 00:09:06]} {[%emt 00:01:28]} Ne4 {[%clk 00:09:00]} {[%emt 00:00:13]} 20.
Nf3 {[%clk 00:07:53]} {[%emt 00:01:18]} Bf6 {[%clk 00:06:37]} {[%emt 00:02:28]}
21. Bd3 {[%clk 00:07:52]} {[%emt 00:00:05]} Nxc5 {[%clk 00:05:51]} {[%emt
00:00:52]} 22. dxc5 {[%clk 00:05:57]} {[%emt 00:02:00]} Bxa1 {[%clk 00:05:53]}
{[%emt 00:00:02]} 23. Rxa1 {[%clk 00:06:01]} {[%emt 00:00:01]} cxb5 {[%clk
00:05:45]} {[%emt 00:00:13]} 24. Bxb5 {[%clk 00:06:05]} {[%emt 00:00:02]} Qxc5
{[%clk 00:04:58]} {[%emt 00:00:51]} 25. Ne5 {[%clk 00:05:41]} {[%emt 00:00:29]}
Ba6 {[%clk 00:02:53]} {[%emt 00:02:10]} 26. Bxa6 {[%clk 00:03:17]} {[%emt
00:02:29]} Rxa6 {[%clk 00:02:22]} {[%emt 00:00:37]} 27. Rb1 {[%clk 00:03:03]}
{[%emt 00:00:19]} Qc8 {[%clk 00:01:42]} {[%emt 00:00:45]} 28. Qb5 {[%clk
00:02:14]} {[%emt 00:00:54]} h6 {[%clk 00:00:38]} {[%emt 00:01:08]} 29. Nd3
{[%clk 00:01:29]} {[%emt 00:00:50]} Qc4 {[%clk 00:00:22]} {[%emt 00:00:22]} 30.
Bxb8 {[%clk 00:01:20]} {[%emt 00:00:14]} Qxb5 {[%clk 00:00:17]} {[%emt
00:00:09]} 31. Rxb5 {[%clk 00:01:16]} {[%emt 00:00:09]} Rxa4 {[%clk 00:00:16]}
{[%emt 00:00:06]} 32. Bg3 {[%clk 00:01:10]} {[%emt 00:00:10]} Ra1+ {[%clk
00:00:17]} {[%emt 00:00:04]} 33. Kh2 {[%clk 00:01:14]} {[%emt 00:00:01]} Rc8
{[%clk 00:00:13]} {[%emt 00:00:08]} 34. Rb7 {[%clk 00:01:18]} {[%emt 00:00:02]}
f6 {[%clk 00:00:13]} {[%emt 00:00:05]} 35. Nf4 {[%clk 00:01:21]} {[%emt
00:00:02]} Ra6 {[%clk 00:00:12]} {[%emt 00:00:05]} 36. Ng6 {[%clk 00:01:21]}
{[%emt 00:00:05]} Re8 {[%clk 00:00:07]} {[%emt 00:00:10]} 37. h4 {[%clk
00:01:21]} {[%emt 00:00:06]} h5 {[%clk 00:00:08]} {[%emt 00:00:04]} 38. Nf4
{[%clk 00:01:24]} g6 {[%clk 00:00:00]} {[%emt 00:00:09]} 1-0

[Event "Open NK Rapid 2025 bord 26-50"]
[Site "Helmond, Netherlands"]
[Date "2025.05.03"]
[Round "8.23"]
[White "Hallibert, Emilien"]
[Black "Pol, Nico"]
[Result "1-0"]
[TimeControl "15 min +5 sec increment"]
[WhiteFideId "1092561"]
[BlackFideId "1064002"]
[WhiteElo "1720"]
[BlackElo "1878"]

1. c4 {[%clk 00:15:09]} Nf6 {[%clk 00:14:59]} {[%emt 00:00:12]} 2. d4 {[%clk
00:15:12]} {[%emt 00:00:02]} e5 {[%clk 00:14:50]} {[%emt 00:00:13]} 3. dxe5
{[%clk 00:15:15]} {[%emt 00:00:02]} Ng4 {[%clk 00:14:55]} 4. Nf3 {[%clk
00:15:17]} {[%emt 00:00:02]} Nc6 {[%clk 00:14:58]} {[%emt 00:00:03]} 5. Bf4
{[%clk 00:14:00]} {[%emt 00:01:22]} Bb4+ {[%clk 00:14:54]} {[%emt 00:00:09]} 6.
Nc3 {[%clk 00:13:54]} {[%emt 00:00:11]} Bxc3+ {[%clk 00:13:57]} {[%emt
00:01:02]} 7. bxc3 {[%clk 00:13:58]} {[%emt 00:00:02]} Qe7 {[%clk 00:13:51]}
{[%emt 00:00:10]} 8. Qd5 {[%clk 00:13:55]} {[%emt 00:00:06]} f6 {[%clk
00:12:17]} {[%emt 00:01:40]} 9. exf6 {[%clk 00:13:42]} {[%emt 00:00:19]} Nxf6
{[%clk 00:12:19]} {[%emt 00:00:02]} 10. Qd3 {[%clk 00:13:02]} {[%emt 00:00:45]}
d6 {[%clk 00:11:55]} {[%emt 00:00:30]} 11. e3 {[%clk 00:12:56]} {[%emt
00:00:11]} Qe4 {[%clk 00:11:32]} {[%emt 00:00:27]} 12. Be2 {[%clk 00:11:40]}
{[%emt 00:01:21]} Bf5 {[%clk 00:11:31]} {[%emt 00:00:06]} 13. Rd1 {[%clk
00:11:34]} {[%emt 00:00:11]} O-O-O {[%clk 00:10:31]} {[%emt 00:01:06]} 14. O-O
{[%clk 00:10:46]} {[%emt 00:00:52]} h6 {[%clk 00:10:26]} {[%emt 00:00:11]} 15.
Nd4 {[%clk 00:10:28]} {[%emt 00:00:23]} Qxd3 {[%clk 00:08:52]} {[%emt
00:01:39]} 16. Bxd3 {[%clk 00:10:31]} {[%emt 00:00:02]} Bxd3 {[%clk 00:08:56]}
{[%emt 00:00:01]} 17. Rxd3 {[%clk 00:10:35]} {[%emt 00:00:01]} Ne5 {[%clk
00:06:48]} {[%emt 00:02:14]} 18. Rdd1 {[%clk 00:10:10]} {[%emt 00:00:28]} Nxc4
{[%clk 00:06:44]} {[%emt 00:00:10]} 19. Nf5 {[%clk 00:08:58]} {[%emt 00:01:17]}
g5 {[%clk 00:06:30]} {[%emt 00:00:20]} 20. Bg3 {[%clk 00:08:56]} {[%emt
00:00:05]} Ne4 {[%clk 00:06:05]} {[%emt 00:00:30]} 21. Rd4 {[%clk 00:08:24]}
{[%emt 00:00:37]} Nxg3 {[%clk 00:05:48]} {[%emt 00:00:23]} 22. Nxg3 {[%clk
00:08:22]} {[%emt 00:00:08]} Ne5 {[%clk 00:05:40]} {[%emt 00:00:12]} 23. h3
{[%clk 00:07:26]} {[%emt 00:01:00]} Rdf8 {[%clk 00:05:30]} {[%emt 00:00:15]} 24.
f4 {[%clk 00:07:28]} {[%emt 00:00:05]} Nc6 {[%clk 00:05:07]} {[%emt 00:00:28]}
25. Re4 {[%clk 00:07:12]} {[%emt 00:00:18]} Re8 {[%clk 00:03:54]} {[%emt
00:01:19]} 26. Rxe8+ {[%clk 00:06:09]} {[%emt 00:01:09]} Rxe8 {[%clk 00:03:58]}
{[%emt 00:00:01]} 27. Nf5 {[%clk 00:06:13]} gxf4 {[%clk 00:03:50]} {[%emt
00:00:13]} 28. exf4 {[%clk 00:06:13]} {[%emt 00:00:05]} Re6 {[%clk 00:03:18]}
{[%emt 00:00:37]} 29. g4 {[%clk 00:06:13]} {[%emt 00:00:05]} Rf6 {[%clk
00:03:00]} {[%emt 00:00:22]} 30. Ne3 {[%clk 00:05:30]} {[%emt 00:00:49]} Kd7
{[%clk 00:02:49]} {[%emt 00:00:16]} 31. h4 {[%clk 00:05:26]} {[%emt 00:00:09]}
Rf8 {[%clk 00:02:16]} {[%emt 00:00:37]} 32. g5 {[%clk 00:05:09]} {[%emt
00:00:23]} Ne7 {[%clk 00:02:04]} {[%emt 00:00:17]} 33. Kg2 {[%clk 00:04:52]}
{[%emt 00:00:21]} h5 {[%clk 00:01:31]} {[%emt 00:00:39]} 34. f5 {[%clk
00:04:49]} {[%emt 00:00:08]} c6 {[%clk 00:01:28]} {[%emt 00:00:08]} 35. g6
{[%clk 00:04:19]} {[%emt 00:00:35]} Ng8 {[%clk 00:01:00]} {[%emt 00:00:33]} 36.
Kg3 {[%clk 00:04:16]} {[%emt 00:00:08]} Nf6 {[%clk 00:00:47]} {[%emt 00:00:18]}
37. Kf4 {[%clk 00:04:15]} {[%emt 00:00:06]} Ke7 {[%clk 00:00:32]} {[%emt
00:00:21]} 38. Re1 {[%clk 00:04:04]} {[%emt 00:00:15]} Kd7 {[%clk 00:00:13]}
{[%emt 00:00:24]} 39. Kg5 {[%clk 00:03:59]} {[%emt 00:00:10]} Ne4+ {[%clk
00:00:16]} {[%emt 00:00:02]} 40. Kh6 {[%clk 00:04:01]} {[%emt 00:00:03]} Nxc3
{[%clk 00:00:15]} {[%emt 00:00:05]} 41. g7 {[%clk 00:04:00]} {[%emt 00:00:07]}
Rg8 {[%clk 00:00:18]} {[%emt 00:00:02]} 42. f6 {[%clk 00:03:57]} {[%emt
00:00:08]} Ke6 {[%clk 00:00:14]} {[%emt 00:00:10]} 43. Nd5+ {[%clk 00:03:42]}
{[%emt 00:00:19]} Kxd5 {[%clk 00:00:00]} {[%emt 00:00:17]} 1-0

[Event "Open NK Rapid 2025 bord 26-50"]
[Site "Helmond, Netherlands"]
[Date "2025.05.03"]
[Round "8.24"]
[White "Rohatgi, Kushagra"]
[Black "Zecha, Oscar"]
[Result "1-0"]
[TimeControl "15 min +5 sec increment"]
[WhiteFideId "34603212"]
[BlackFideId "1073826"]
[WhiteElo "1774"]
[BlackElo "1873"]

1. e4 {[%clk 00:15:07]} {[%emt 00:00:03]} d5 {[%clk 00:15:10]} {[%emt
00:00:01]} 2. exd5 {[%clk 00:15:10]} {[%emt 00:00:01]} Qxd5 {[%clk 00:15:14]}
{[%emt 00:00:01]} 3. Nc3 {[%clk 00:15:13]} {[%emt 00:00:02]} Qd6 {[%clk
00:15:19]} 4. Nf3 {[%clk 00:15:11]} {[%emt 00:00:07]} Nf6 {[%clk 00:15:23]}
{[%emt 00:00:01]} 5. Bc4 {[%clk 00:14:22]} {[%emt 00:00:53]} Bg4 {[%clk
00:15:22]} {[%emt 00:00:07]} 6. O-O {[%clk 00:14:02]} {[%emt 00:00:24]} Nc6
{[%clk 00:15:20]} {[%emt 00:00:07]} 7. Re1 {[%clk 00:13:38]} {[%emt 00:00:29]}
Nd4 {[%clk 00:14:01]} {[%emt 00:01:24]} 8. Be2 {[%clk 00:13:12]} {[%emt
00:00:30]} Nxe2+ {[%clk 00:14:02]} {[%emt 00:00:05]} 9. Qxe2 {[%clk 00:12:50]}
{[%emt 00:00:27]} O-O-O {[%clk 00:13:45]} {[%emt 00:00:21]} 10. d3 {[%clk
00:12:46]} {[%emt 00:00:10]} e6 {[%clk 00:13:36]} {[%emt 00:00:14]} 11. Ne4
{[%clk 00:12:07]} {[%emt 00:00:43]} Qc6 {[%clk 00:13:02]} {[%emt 00:00:40]} 12.
Ne5 {[%clk 00:11:12]} {[%emt 00:01:00]} Bxe2 {[%clk 00:08:08]} {[%emt
00:04:59]} 13. Nxc6 {[%clk 00:11:10]} {[%emt 00:00:07]} bxc6 {[%clk 00:08:07]}
{[%emt 00:00:07]} 14. Rxe2 {[%clk 00:10:46]} {[%emt 00:00:28]} Nd5 {[%clk
00:08:02]} {[%emt 00:00:09]} 15. Bd2 {[%clk 00:10:12]} {[%emt 00:00:40]} h6
{[%clk 00:07:50]} {[%emt 00:00:18]} 16. Nc3 {[%clk 00:09:28]} {[%emt 00:00:48]}
Bd6 {[%clk 00:06:52]} {[%emt 00:01:03]} 17. Ne4 {[%clk 00:08:54]} {[%emt
00:00:39]} Rhe8 {[%clk 00:06:30]} {[%emt 00:00:26]} 18. d4 {[%clk 00:08:19]}
{[%emt 00:00:41]} f5 {[%clk 00:05:30]} {[%emt 00:01:06]} 19. Ng3 {[%clk
00:07:44]} {[%emt 00:00:38]} Kd7 {[%clk 00:05:17]} {[%emt 00:00:19]} 20. Rae1
{[%clk 00:07:23]} {[%emt 00:00:26]} c5 {[%clk 00:04:23]} {[%emt 00:00:59]} 21.
c4 {[%clk 00:06:43]} {[%emt 00:00:45]} Nf6 {[%clk 00:03:58]} {[%emt 00:00:30]}
22. d5 {[%clk 00:05:39]} {[%emt 00:01:10]} Bxg3 {[%clk 00:02:31]} {[%emt
00:01:31]} 23. dxe6+ {[%clk 00:05:26]} {[%emt 00:00:18]} Kc6 {[%clk 00:02:34]}
{[%emt 00:00:02]} 24. hxg3 {[%clk 00:05:09]} {[%emt 00:00:22]} Ne4 {[%clk
00:02:22]} {[%emt 00:00:17]} 25. Ba5 {[%clk 00:04:09]} {[%emt 00:01:05]} Rd6
{[%clk 00:02:17]} {[%emt 00:00:10]} 26. Bc3 {[%clk 00:02:31]} {[%emt 00:01:44]}
g5 {[%clk 00:01:22]} {[%emt 00:00:59]} 27. Bg7 {[%clk 00:02:03]} {[%emt
00:00:33]} h5 {[%clk 00:00:59]} {[%emt 00:00:27]} 28. Kh2 {[%clk 00:01:40]}
{[%emt 00:00:28]} h4 {[%clk 00:00:42]} {[%emt 00:00:22]} 29. gxh4 {[%clk
00:01:27]} {[%emt 00:00:19]} gxh4 {[%clk 00:00:46]} {[%emt 00:00:01]} 30. Bc3
{[%clk 00:01:00]} {[%emt 00:00:32]} Rdxe6 {[%clk 00:00:25]} {[%emt 00:00:26]}
31. f3 {[%clk 00:00:54]} {[%emt 00:00:12]} Ng5 {[%clk 00:00:29]} 32. Rxe6+
{[%clk 00:00:56]} {[%emt 00:00:03]} Rxe6 {[%clk 00:00:33]} 33. Rxe6+ {[%clk
00:00:57]} {[%emt 00:00:04]} Nxe6 {[%clk 00:00:36]} {[%emt 00:00:02]} 34. Bf6
{[%clk 00:00:55]} {[%emt 00:00:07]} Nf4 {[%clk 00:00:21]} {[%emt 00:00:20]} 35.
Bxh4 {[%clk 00:00:49]} {[%emt 00:00:10]} Nd3 {[%clk 00:00:24]} {[%emt
00:00:02]} 36. Bf6 {[%clk 00:00:51]} {[%emt 00:00:04]} Kd6 {[%clk 00:00:26]}
{[%emt 00:00:04]} 37. g4 {[%clk 00:00:46]} {[%emt 00:00:09]} fxg4 {[%clk
00:00:15]} {[%emt 00:00:16]} 38. fxg4 {[%clk 00:00:50]} {[%emt 00:00:01]} Ke6
{[%clk 00:00:20]} 39. Bc3 {[%clk 00:00:47]} {[%emt 00:00:08]} Kf7 {[%clk
00:00:17]} {[%emt 00:00:07]} 40. Kg3 {[%clk 00:00:47]} {[%emt 00:00:05]} Kg6
{[%clk 00:00:22]} 41. Kf3 {[%clk 00:00:40]} {[%emt 00:00:12]} Kg5 {[%clk
00:00:19]} {[%emt 00:00:08]} 42. Kg3 {[%clk 00:00:27]} {[%emt 00:00:18]} c6
{[%clk 00:00:17]} {[%emt 00:00:07]} 43. a3 {[%clk 00:00:18]} {[%emt 00:00:15]}
a6 {[%clk 00:00:18]} {[%emt 00:00:03]} 44. b4 {[%clk 00:00:21]} {[%emt
00:00:02]} cxb4 {[%clk 00:00:21]} {[%emt 00:00:02]} 45. axb4 {[%clk 00:00:25]}
{[%emt 00:00:01]} Kg6 {[%clk 00:00:15]} {[%emt 00:00:11]} 46. Kf3 {[%clk
00:00:24]} {[%emt 00:00:06]} Nc1 {[%clk 00:00:12]} {[%emt 00:00:08]} 47. Ke4
{[%clk 00:00:18]} {[%emt 00:00:11]} Na2 {[%clk 00:00:12]} {[%emt 00:00:05]} 48.
Bd2 {[%clk 00:00:20]} {[%emt 00:00:03]} Kf6 {[%clk 00:00:15]} {[%emt 00:00:02]}
49. Kd3 {[%clk 00:00:21]} {[%emt 00:00:03]} Ke5 {[%clk 00:00:09]} {[%emt
00:00:12]} 50. Kc2 {[%clk 00:00:24]} {[%emt 00:00:02]} Kd4 {[%clk 00:00:06]}
{[%emt 00:00:07]} 51. Kb2 {[%clk 00:00:26]} {[%emt 00:00:03]} Nxb4 {[%clk
00:00:00]} {[%emt 00:00:06]} 1-0

[Event "Open NK Rapid 2025 bord 26-50"]
[Site "Helmond, Netherlands"]
[Date "2025.05.03"]
[Round "9.1"]
[White "Margaryan, Aren"]
[Black "Van Esch, Rob"]
[Result "1-0"]
[TimeControl "15 min +5 sec increment"]
[WhiteFideId "40105075"]
[BlackFideId "40119289"]
[WhiteElo "2054"]
[BlackElo "1860"]

1. e4 {[%clk 00:15:08]} {[%emt 00:00:01]} c5 {[%clk 00:15:04]} {[%emt
00:00:05]} 2. c3 {[%clk 00:15:11]} {[%emt 00:00:02]} d5 {[%clk 00:14:09]}
{[%emt 00:01:00]} 3. exd5 {[%clk 00:15:12]} {[%emt 00:00:03]} Qxd5 {[%clk
00:14:10]} {[%emt 00:00:05]} 4. Nf3 {[%clk 00:15:16]} {[%emt 00:00:01]} Nc6
{[%clk 00:13:13]} {[%emt 00:01:03]} 5. Na3 {[%clk 00:15:11]} {[%emt 00:00:09]}
a6 {[%clk 00:12:55]} {[%emt 00:00:23]} 6. Nc4 {[%clk 00:15:10]} {[%emt
00:00:05]} Qd8 {[%clk 00:12:43]} {[%emt 00:00:18]} 7. d3 {[%clk 00:13:57]}
{[%emt 00:01:17]} Nf6 {[%clk 00:12:31]} {[%emt 00:00:19]} 8. Bf4 {[%clk
00:13:48]} {[%emt 00:00:12]} g6 {[%clk 00:11:55]} {[%emt 00:00:42]} 9. Qe2
{[%clk 00:13:35]} {[%emt 00:00:17]} e6 {[%clk 00:09:26]} {[%emt 00:02:35]} 10.
g3 {[%clk 00:13:17]} {[%emt 00:00:22]} b5 {[%clk 00:09:19]} {[%emt 00:00:14]}
11. Nce5 {[%clk 00:13:15]} {[%emt 00:00:06]} Bb7 {[%clk 00:09:00]} {[%emt
00:00:25]} 12. Nxc6 {[%clk 00:12:33]} {[%emt 00:00:47]} Bxc6 {[%clk 00:09:03]}
{[%emt 00:00:02]} 13. Bg2 {[%clk 00:12:36]} {[%emt 00:00:01]} Bg7 {[%clk
00:08:45]} {[%emt 00:00:23]} 14. O-O {[%emt 00:00:13]} O-O {[%clk 00:08:47]}
{[%emt 00:00:02]} 15. Rad1 {[%clk 00:12:24]} {[%emt 00:00:09]} Qb6 {[%clk
00:08:12]} {[%emt 00:00:41]} 16. d4 {[%clk 00:11:36]} {[%emt 00:00:53]} c4
{[%clk 00:08:03]} {[%emt 00:00:15]} 17. Ne5 {[%clk 00:10:11]} {[%emt 00:01:30]}
Bxg2 {[%clk 00:07:51]} {[%emt 00:00:16]} 18. Kxg2 {[%clk 00:10:12]} {[%emt
00:00:03]} Rfd8 {[%clk 00:06:44]} {[%emt 00:01:13]} 19. Qf3 {[%clk 00:09:53]}
{[%emt 00:00:23]} Nd5 {[%clk 00:05:13]} {[%emt 00:01:37]} 20. Be3 {[%clk
00:08:54]} {[%emt 00:01:04]} Ra7 {[%clk 00:04:13]} {[%emt 00:01:06]} 21. b3
{[%clk 00:06:47]} {[%emt 00:02:12]} cxb3 {[%clk 00:03:30]} {[%emt 00:00:47]} 22.
axb3 {[%clk 00:06:45]} {[%emt 00:00:07]} Bxe5 {[%clk 00:02:20]} {[%emt
00:01:15]} 23. dxe5 {[%clk 00:06:40]} {[%emt 00:00:10]} Nxe3+ {[%clk 00:02:05]}
{[%emt 00:00:20]} 24. Qxe3 {[%clk 00:06:19]} {[%emt 00:00:26]} Qb7+ {[%clk
00:01:32]} {[%emt 00:00:39]} 25. Kg1 {[%clk 00:06:07]} {[%emt 00:00:16]} Raa8
{[%clk 00:01:33]} {[%emt 00:00:04]} 26. Rd6 {[%clk 00:05:58]} {[%emt 00:00:13]}
Qc7 {[%clk 00:00:50]} {[%emt 00:00:50]} 27. Rfd1 {[%clk 00:05:51]} {[%emt
00:00:11]} Rdc8 {[%clk 00:00:41]} {[%emt 00:00:15]} 28. R1d3 {[%clk 00:05:20]}
{[%emt 00:00:35]} a5 {[%clk 00:00:36]} {[%emt 00:00:10]} 29. Qf3 {[%clk
00:05:13]} {[%emt 00:00:12]} Rd8 {[%clk 00:00:15]} {[%emt 00:00:26]} 30. Qf6
{[%clk 00:05:10]} {[%emt 00:00:08]} Rf8 {[%clk 00:00:12]} {[%emt 00:00:08]} 31.
Rd7 {[%clk 00:04:59]} {[%emt 00:00:16]} Qc6 {[%clk 00:00:06]} {[%emt 00:00:12]}
32. R7d6 {[%clk 00:03:24]} {[%emt 00:01:39]} Qe4 {[%clk 00:00:10]} {[%emt
00:00:02]} 33. R6d4 {[%clk 00:03:04]} {[%emt 00:00:24]} Qf5 {[%clk 00:00:12]}
{[%emt 00:00:04]} 34. Qxf5 {[%clk 00:02:57]} {[%emt 00:00:11]} gxf5 {[%clk
00:00:12]} {[%emt 00:00:06]} 35. c4 {[%clk 00:02:36]} {[%emt 00:00:26]} bxc4
{[%clk 00:00:12]} {[%emt 00:00:04]} 36. Rxc4 {[%clk 00:02:37]} {[%emt
00:00:04]} Rfb8 {[%clk 00:00:12]} {[%emt 00:00:06]} 37. Kg2 {[%clk 00:02:28]}
{[%emt 00:00:12]} Rb5 {[%clk 00:00:09]} {[%emt 00:00:08]} 38. f4 {[%clk
00:02:26]} {[%emt 00:00:08]} Rab8 {[%clk 00:00:13]} {[%emt 00:00:02]} 39. Rcc3
{[%clk 00:02:22]} {[%emt 00:00:08]} Kf8 {[%clk 00:00:13]} {[%emt 00:00:05]} 40.
Kh3 {[%clk 00:02:26]} {[%emt 00:00:02]} Ke8 {[%clk 00:00:14]} {[%emt 00:00:03]}
41. Kh4 {[%clk 00:02:27]} {[%emt 00:00:03]} Rb4 {[%clk 00:00:17]} {[%emt
00:00:03]} 42. Kh5 {[%clk 00:02:27]} {[%emt 00:00:05]} Kf8 {[%clk 00:00:21]}
{[%emt 00:00:02]} 43. Kh6 {[%clk 00:02:17]} {[%emt 00:00:15]} Re4 {[%clk
00:00:25]} 44. Kxh7 {[%clk 00:02:09]} {[%emt 00:00:13]} a4 {[%clk 00:00:21]}
{[%emt 00:00:08]} 45. bxa4 {[%clk 00:02:13]} {[%emt 00:00:02]} Rxa4 {[%clk
00:00:25]} 46. Kh6 {[%clk 00:02:12]} {[%emt 00:00:05]} Ra2 {[%clk 00:00:26]}
{[%emt 00:00:04]} 47. h4 {[%clk 00:02:16]} {[%emt 00:00:01]} Rb7 {[%clk
00:00:15]} {[%emt 00:00:16]} 48. Rc8+ {[%clk 00:02:01]} {[%emt 00:00:21]} Ke7
{[%clk 00:00:18]} {[%emt 00:00:01]} 49. Kg7 {[%clk 00:02:00]} {[%emt 00:00:05]}
Rh2 {[%clk 00:00:07]} {[%emt 00:00:17]} 50. Rf8 {[%clk 00:01:58]} {[%emt
00:00:06]} 1-0

[Event "Open NK Rapid 2025 bord 26-50"]
[Site "Helmond, Netherlands"]
[Date "2025.05.03"]
[Round "9.2"]
[White "Thodam, Malte"]
[Black "Omnes, Tiago"]
[Result "1-0"]
[TimeControl "15 min +5 sec increment"]
[WhiteFideId "24687120"]
[BlackFideId "1091867"]
[WhiteElo "2044"]
[BlackElo "1813"]

1. e4 {[%clk 00:15:08]} {[%emt 00:00:02]} e5 {[%clk 00:15:09]} {[%emt
00:00:01]} 2. Nf3 {[%clk 00:15:12]} {[%emt 00:00:01]} Nc6 {[%clk 00:15:13]} 3.
Bc4 {[%clk 00:15:09]} {[%emt 00:00:07]} Nf6 {[%clk 00:15:15]} {[%emt 00:00:02]}
4. d3 {[%clk 00:15:01]} {[%emt 00:00:14]} Bc5 {[%clk 00:15:18]} {[%emt
00:00:03]} 5. c3 {[%clk 00:15:01]} {[%emt 00:00:05]} d6 {[%clk 00:15:20]}
{[%emt 00:00:02]} 6. O-O {[%clk 00:15:00]} {[%emt 00:00:07]} O-O {[%clk
00:15:21]} {[%emt 00:00:03]} 7. h3 {[%clk 00:14:51]} {[%emt 00:00:14]} a5
{[%clk 00:15:24]} {[%emt 00:00:03]} 8. Re1 {[%clk 00:14:50]} {[%emt 00:00:06]}
Be6 {[%clk 00:15:25]} {[%emt 00:00:03]} 9. Bb3 {[%clk 00:14:40]} {[%emt
00:00:15]} Qd7 {[%clk 00:14:57]} {[%emt 00:00:33]} 10. d4 {[%clk 00:14:29]}
{[%emt 00:00:17]} exd4 {[%clk 00:14:34]} {[%emt 00:00:28]} 11. cxd4 {[%clk
00:14:32]} {[%emt 00:00:02]} Bxb3 {[%clk 00:14:37]} {[%emt 00:00:02]} 12. axb3
{[%clk 00:14:23]} {[%emt 00:00:15]} Bb6 {[%clk 00:14:32]} {[%emt 00:00:09]} 13.
Nc3 {[%clk 00:14:10]} {[%emt 00:00:18]} Rfe8 {[%clk 00:14:21]} {[%emt
00:00:16]} 14. Bg5 {[%clk 00:14:08]} {[%emt 00:00:07]} Kh8 {[%clk 00:11:02]}
{[%emt 00:03:24]} 15. Bxf6 {[%clk 00:13:46]} {[%emt 00:00:27]} gxf6 {[%clk
00:11:05]} {[%emt 00:00:01]} 16. Nd5 {[%clk 00:13:49]} {[%emt 00:00:03]} Qd8
{[%clk 00:10:23]} {[%emt 00:00:47]} 17. Nxb6 {[%clk 00:13:36]} {[%emt
00:00:18]} cxb6 {[%clk 00:10:26]} {[%emt 00:00:01]} 18. Qd2 {[%clk 00:11:10]}
{[%emt 00:02:31]} Rg8 {[%clk 00:09:50]} {[%emt 00:00:41]} 19. Nh4 {[%clk
00:10:02]} {[%emt 00:01:13]} Ne7 {[%clk 00:09:23]} {[%emt 00:00:32]} 20. Qh6
{[%clk 00:08:16]} {[%emt 00:01:51]} Ng6 {[%clk 00:08:56]} {[%emt 00:00:32]} 21.
Nf5 {[%clk 00:08:11]} {[%emt 00:00:11]} Rc8 {[%clk 00:08:33]} {[%emt 00:00:27]}
22. Rac1 {[%clk 00:08:00]} {[%emt 00:00:17]} Rxc1 {[%clk 00:08:29]} {[%emt
00:00:09]} 23. Rxc1 {[%clk 00:08:04]} {[%emt 00:00:01]} Qd7 {[%clk 00:07:43]}
{[%emt 00:00:51]} 24. h4 {[%clk 00:05:29]} {[%emt 00:02:40]} Qe6 {[%clk
00:06:08]} {[%emt 00:01:41]} 25. h5 {[%clk 00:02:21]} {[%emt 00:03:12]} Nf8
{[%clk 00:05:01]} {[%emt 00:01:11]} 26. f3 {[%clk 00:01:19]} {[%emt 00:01:08]}
Qxb3 {[%clk 00:04:28]} {[%emt 00:00:38]} 27. Rc8 {[%clk 00:00:59]} {[%emt
00:00:25]} Qxb2 {[%clk 00:04:15]} {[%emt 00:00:18]} 28. g4 {[%clk 00:00:47]}
{[%emt 00:00:16]} Qe2 {[%clk 00:02:44]} {[%emt 00:01:37]} 29. Qxf6+ {[%clk
00:00:45]} {[%emt 00:00:07]} Rg7 {[%clk 00:02:45]} {[%emt 00:00:04]} 30. Qxg7#
{[%clk 00:00:48]} {[%emt 00:00:02]} 1-0